Cogmind - Beta 13 @@@ ROGUE MODE // 2024.04.03 @ 12:32:20 Player: f_ Result: Destroyed by as-09644 with Assembled Heavy Rifle Performance ------------- Evolutions (0) 0 Regions Visited (2) 400 Robots Destroyed (6) 30 Value Destroyed (145) 145 Prototype IDs (0) 0 Alien Tech Used (0) 0 Bonus (-13) -13 TOTAL SCORE: 562 Bonus ------- Friendly Fire -13 Cogmind --------- Core Integrity 0/250 Matter 82/300 Energy 99/100 System Corruption 1% Temperature Cool (0) Movement Core (150) Ox2 Location -10/Mines Parts ------- > --- POWER (1) -------- (None) > --- PROPULSION (2) --- (None) > --- UTILITY (2) ------ Small Storage Unit > --- WEAPON (2) ------- Light Assault Rifle Heavy Flail > --- INVENTORY (8) ---- Light Ion Engine Wheel Flight Unit Flight Unit Flight Unit Medium Laser Small Laser Peak State ------------ > --- POWER ------------ Ion Engine > --- PROPULSION ------- Wheel Compact Wheel > --- UTILITY ---------- Small Storage Unit > --- WEAPON ----------- Light Assault Rifle Grenade Launcher > --- INVENTORY -------- Light Ion Engine Wheel Flight Unit Flight Unit Flight Unit Medium Laser Small Laser Signal Generator [Rating: 7] Favorites ----------- Power Ion Engine Engine Ion Engine Propulsion Wheel Wheel Wheel Utility Small Storage Unit Storage Small Storage Unit Weapon Light Assault Rifle Energy Gun Small Laser Ballistic Gun Light Assault Rifle Launcher Grenade Launcher Impact Weapon Heavy Flail Build | -11 -10 -10 ------- Run | Yrd Mat Min Slots Evolved . | . . . Power . | . . . Propulsion . | . . . Utility . | . . . Weapon . | . . . Parts Attached 8 | 6 . 2 Power 1 | 1 . . Engine 1 | 1 . . Core . | . . . Reactor . | . . . Propulsion 2 | 2 . . Treads . | . . . Leg . | . . . Wheel 2 | 2 . . Hover . | . . . Flight . | . . . Utility 1 | 1 . . Device . | . . . Storage 1 | 1 . . Processor . | . . . Hackware . | . . . Protection . | . . . Artifact . | . . . Weapon 4 | 2 . 2 Energy Gun 1 | 1 . . Energy Cannon . | . . . Ballistic Gun 1 | 1 . . Ballistic Cannon . | . . . Launcher 1 | . . 1 Special Weapon . | . . . Impact Weapon 1 | . . 1 Slashing Weapon . | . . . Piercing Weapon . | . . . Special Melee Weapon . | . . . Unidentified Prototypes . | . . . Parts Lost 4 | . . 4 Power 1 | . . 1 Propulsion 2 | . . 2 Utility . | . . . Weapon 1 | . . 1 Highest Loss Streak 3 | . . 3 To Critical Strikes . | . . . Average Slot Usage (%) 73 | . 85 66 Engine 11 | . 14 9 Wheel 20 | . 28 16 Storage 14 | . 14 14 Energy Gun 5 | . 14 1 Ballistic Gun 14 | . 14 14 Launcher 6 | . . 10 Naked Turns . | . . . Heaviest Build 14 | 12 12 14 Greatest Support 26 | 26 26 26 Greatest Overweight (x) 4 | . . 4 Average Overweight (x) . | . . . Largest Inventory Capacity 8 | 8 8 8 Average Capacity 7 | 7 8 8 Most Carried 8 | 4 4 8 Average Carried 5 | 1 3 6 Final Capacity 8 | 8 8 8 Final Carried 7 | 2 4 7 Class Distribution -------------------- 100% | Mutant Dominant Class ---------------- Mutant | -10/Materials Mutant | -10/Mines Resources | -11 -10 -10 ----------- Run | Yrd Mat Min Matter Collected 109 | 38 . 71 Remotely . | . . . Salvage Created 125 | . 43 82 Parts 9 | . 1 8 Haulers Intercepted . | . . . Recyclers Shooed . | . . . Parts Field Recycled . | . . . Retrieved Matter . | . . . Parts Self-Destructed . | . . . Prevented . | . . . Kills | -11 -10 -10 ------- Run | Yrd Mat Min Combat Hostiles Destroyed 7 | . 1 6 Melee 1 | . . 1 Guns 2 | . 1 1 AOE 4 | . . 4 Classes Destroyed 3 | . 1 2 Swarmer 3 | . . 3 Grunt 3 | . 1 2 Assembled 1 | . . 1 Best Kill Streak 3 | . 1 3 Combat Bots Only 3 | . 1 3 Max Kills in Single Turn 2 | . 1 2 Gunslinging . | . . . Exploded 2 | . . 2 Melee 1 | . . 1 Uniques/NPCs Destroyed . | . . . Combat | -11 -10 -10 -------- Run | Yrd Mat Min Hostile Shots Fired 57 | . 5 52 Missed 14 | . . 14 Damage Taken 590 | . 54 536 Core 251 | . 21 230 Absorbed by Shields . | . . . Core Remaining (%) 100 | 100 . . Volleys Fired 22 | . 5 17 Largest 2 | . 2 1 Hottest 60 | . 60 30 Shots Fired 27 | . 10 17 Gun 22 | . 10 12 Cannon . | . . . Launcher 5 | . . 5 Special . | . . . Kinetic 17 | . 5 12 Thermal 5 | . 5 . Explosive 5 | . . 5 Electromagnetic . | . . . Robot Hit Streak 4 | . 4 2 Robot Miss Streak 3 | . 2 3 Penetration Max . | . . . Secondary Targets . | . . . Shots Hit Robots 16 | . 6 10 Core Hits 15 | . 2 13 Critical Kills . | . . . Critical Parts Destroyed . | . . . Critical Strikes . | . . . Melee Attacks 1 | . . 1 Impact 1 | . . 1 Slashing . | . . . Piercing . | . . . Sneak Attacks . | . . . Combat Hostiles . | . . . Follow-up Attacks . | . . . Damage Inflicted 489 | . 59 430 Guns 127 | . 59 68 Cannons . | . . . Explosions 272 | . . 272 Melee 90 | . . 90 Ramming . | . . . Kinetic 95 | . 27 68 Thermal 32 | . 32 . Explosive 272 | . . 272 Electromagnetic . | . . . Impact 90 | . . 90 Slashing . | . . . Piercing . | . . . Highest Corruption 1 | . . 1 Average Corruption 1 | . . 1 Corruption Purged . | . . . Corruption Blocked . | . . . Overload Shots . | . . . Overflow Damage 16 | . . 16 Projectiles . | . . . Explosions 16 | . . 16 Melee . | . . . Knockbacks . | . . . Impact . | . . . Kinetic . | . . . Secondary . | . . . Self-Inflicted Damage 27 | . . 27 Shots 1 | . . 1 Rammed . | . . . Targets Rammed . | . . . Kicked . | . . . Crushed . | . . . Highest Temperature 64 | . 64 10 Average Temperature 23 | . 31 8 Received Heat Transfer 221 | . 30 191 Siege Activations . | . . . Robots Corrupted . | . . . Combat Hostiles . | . . . Parts Fried . | . . . Impact Corruptions . | . . . Robots Melted . | . . . Combat Hostiles . | . . . Parts Melted . | . . . Heat Transferred 75 | . 75 . Parts Sabotaged . | . . . Parts Stolen . | . . . Parts Stripped . | . . . Power Chain Reactions . | . . . Alert | -11 -10 -10 ------- Run | Yrd Mat Min Peak Influence 150 | . 57 150 Initial 22 | . . 22 Average 75 | . 22 116 Maximum Alert Level . | . . . Low Security (%) 100 | 100 100 100 Level 1 . | . . . Level 2 . | . . . Level 3 . | . . . Level 4 . | . . . Level 5 . | . . . High Security . | . . . Max Security . | . . . Squads Dispatched 2 | . 1 1 Investigation . | . . . Extermination . | . . . Reinforcement 1 | . 1 . Assault 1 | . . 1 Garrison . | . . . Intercept . | . . . Searches Triggered . | . . . Construction Impeded . | . . . Haulers Reinforced . | . . . Active Scanning Responses . | . . . Cargo Convoy Interrupts . | . . . Stealth | -11 -10 -10 --------- Run | Yrd Mat Min Distress Signals . | . . . Communications Jammed . | . . . Distress Signals . | . . . Times Spotted 28 | . 2 26 Peak Tracking Total 24 | . 1 24 Tactical Retreats 2 | . . 2 Traps | -11 -10 -10 ------- Run | Yrd Mat Min Traps Triggered . | . . . Indirectly . | . . . Trap Hack Attempts . | . . . Triggered . | . . . Disarmed . | . . . Reprogrammed . | . . . Reused . | . . . Traps Extracted . | . . . Installed . | . . . Triggered . | . . . Machines | -11 -10 -10 ---------- Run | Yrd Mat Min Machines Disabled . | . . . Max in Single Turn . | . . . Machines Repaired . | . . . Machines Dismantled . | . . . Machines Sabotaged . | . . . Overloaded Fab Kills . | . . . Hacking | -11 -10 -10 --------- Run | Yrd Mat Min Machines Accessed 4 | . 3 1 Terminals 3 | . 3 . Fabricators . | . . . Repair Stations . | . . . Recycling Units . | . . . Scanalyzers . | . . . Garrison Access . | . . . Total Hacks 11 | . 10 1 Successful 4 | . 3 1 Failed 7 | . 7 . Catastrophic 2 | . 2 . Database Lockouts . | . . . Manual 3 | . 3 . Terminals 10 | . 10 . Fabricators . | . . . Repair Stations . | . . . Recycling Units . | . . . Scanalyzers . | . . . Garrison Access . | . . . Terminal Hacks 4 | . 3 1 Open Door 1 | . . 1 Branch Access Points 1 | . 1 . Terminal Index 1 | . 1 . Zone Layout 1 | . 1 . Fabricator Hacks . | . . . Repair Station Hacks . | . . . Recycling Unit Hacks . | . . . Scanalyzer . | . . . Garrison Access Hacks . | . . . Unauthorized Hacks . | . . . Terminals . | . . . Fabricators . | . . . Repair Stations . | . . . Recycling Units . | . . . Scanalyzers . | . . . Garrison Access . | . . . Data Cores Recovered . | . . . Used . | . . . Hacking Detections 3 | . 3 . Full Trace Events 1 | . 1 . Feedback Events . | . . . Feedback Blocked . | . . . Robot Schematics Acquired . | . . . Robots Built . | . . . Authchips . | . . . Time . | . . . Total Robot Build Rating . | . . . Part Schematics Acquired . | . . . Parts Built . | . . . Authchips . | . . . Time . | . . . Total Part Build Rating . | . . . Parts Repaired . | . . . Time . | . . . Parts Recycled . | . . . Recycled Matter . | . . . Retrieved Matter . | . . . Retrieved Components . | . . . Parts Scanalyzed . | . . . Part Schematics Acquired . | . . . Parts Damaged . | . . . Bothacking | -11 -10 -10 ------------ Run | Yrd Mat Min Used RIF Installer . | . . . Robots Hacked . | . . . Non-combat . | . . . Combat . | . . . Robot Hacks Applied . | . . . Relay Couplers Released . | . . . Fabnet Peak Effective % . | . . . Robots Rewired . | . . . Allies Hacked . | . . . Hacks Repelled . | . . . Allies | -11 -10 -10 -------- Run | Yrd Mat Min Total Allies 1 | . . 1 Largest Group 1 | . . 1 Highest-Rated Group 31 | . . 31 Highest-Rated Ally 31 | . . 31 Total Orders . | . . . Ally Attacks 7 | . . 7 Total Damage 62 | . . 62 Kills . | . . . Allies Corrupted . | . . . Allies Melted . | . . . Intel | -11 -10 -10 ------- Run | Yrd Mat Min Robot Analysis Total . | . . . Derelict Logs Recovered 1 | . . 1 Drone Launches . | . . . Drone Recoveries . | . . . Exploration | -11 -10 -10 ------------- Run | Yrd Mat Min Turns Passed 438 | 43 140 255 Spaces Moved 359 | 37 117 205 Core 83 | 9 . 74 Treads . | . . . Legs . | . . . Wheels 276 | 28 117 131 Hover . | . . . Flight . | . . . Fastest Speed 50 | 50 90 90 Average Speed 96 | 80 90 102 Slowest Speed 250 | 90 90 250 Overloaded Moves . | . . . Propulsion Burnouts . | . . . Robots Hopped . | . . . Cave-ins Triggered . | . . . Exploration Rate (%) 24 | 4 24 45 Regions Visited 2 Branch Regions 1 Pre-discovered Areas . | . . . Known Exits Taken 1 | . 1 . Unknown Exits Taken 1 | 1 . . Scrap Searched . | . . . Spaces Dug . | . . . Terrain Destroyed 41 | . . 41 Melee . | . . . Projectile . | . . . AOE 41 | . . 41 Terrain Rammed . | . . . Walls Destroyed . | . . . Machines Disabled . | . . . Actions | -11 -10 -10 --------- Run | Yrd Mat Min Total 426 | 50 142 234 Wait 22 | . 19 3 Move 357 | 36 116 205 Hop . | . . . Pick Up 15 | 8 2 5 Fast Attach . | . . . Attach 7 | 6 . 1 Detach . | . . . Swap 1 | . . 1 Drop 1 | . . 1 Fire 22 | . 5 17 Melee 1 | . . 1 Ram . | . . . Kick . | . . . Crush . | . . . Escape Stasis . | . . . Rewire . | . . . Trap . | . . . Miscellaneous . | . . . Route ------- -11/Scrapyard -10/Materials (discovered 2 exits: *Min x2) -10/Mines History --------- Turn | Location | Event 34 | -11/Scrapyard | Discovered new exit (range 12) 44 | -11/Scrapyard | Entered Materials 150 | -10/Materials | Identified exit to Mines 184 | -10/Materials | Entered Mines 249 | -10/Mines | Learned Materials garrison access intel 260 | -10/Mines | Met a Derelict testing a Signal Generator 264 | -10/Mines | Found Signal Generator 321 | -10/Mines | Build established: Mutant 381 | -10/Mines | Lost 3 parts (1p2n) 402 | -10/Mines | Assembled infested the area 425 | -10/Mines | Met a Derelict who couldn't figure out how to use a Trap Extractor 435 | -10/Mines | Core integrity fell below 50% 436 | -10/Mines | Core integrity fell below 20% 439 | -10/Mines | Destroyed by as-09644 with Assembled Heavy Rifle Last Messages --------------- Sealed Doors opened. 00424_ as-68852 suffers critical hit (Burn). 00424_ as-68852 destroyed. 00425_ 1H-NGL(g): "So I found this thing but I have no idea how to use it. And who the hell trapped this place to begin with?!" 00425_ 1H-NGL(g): "I give up! Here you try, I'm outta here before something nasty happens..." 00425_ Tosses Imp. Trap Extractor to the ground. 00428_ Acquired Hvy. Flail. 00428_ as-03423 destroyed. 00430_ as-54174 destroyed. 00431_ Machine disabled. 00434_ 1H-NGL(g) triggered EMP Trap. 00434_ A bubble of electromagnetic force engulfs the area. 00434_ 1H-NGL(g) destroyed. 00434_ Explosive Trap short circuited. 00434_ An explosion rips through the floor. 00437_ as-02309 destroyed. Map ----- +----------------------------------------------------+ | | | | | | | | | | | | | | | | | ?????????????????????????????????????????????????? | | ?????????????????????????????????????????????????? | | ?????????????????????????????????????????????????? | | ?????????????????????????????????????????????????? | | ?????????????????????????????????????????????????? | | ?????????????????????????????????????????????????? | | ?????????????????????????????????????????????????? | | ?????????????????????????????????????????????????? | | ????????????????????????##???##??????????????????? | | ????????????????????????# ### ###????????????????? | | ????????????????????????# #????????????????? | | ????????????????????????# [!! !=#????????????????? | | ?????????????????????????# ! #?????????????????? | | ?????????????????????????# [%]###???????????????? | | ?????????????????????????# %*## ##??????????????? | | ?????????????????????#???# #??????????????? | | ?????????????######### ###a % #??????????????? | | ?????????? @ % #??????????????? | | ?????????? ##??????????????? | | ?????????????### ####### a% ###???????? ??????? | | ????????????????????????# a %##?????????? ??????? | | ????????????????????????# a #######????? ??????? | | ????????????????????????# #????# ????? ? | | ????????????????????????## ##### #????# ????? ? | | ?????????????????????????## ##???# #????# ????? ? | | ??????????????????????????#%#????# #????? ????? ? | | ??????????????????????????# ????# #????? ##??? ? | | ??????????????????????????###????# #????? #??? ? | | ????????????????????????????????## ##???? ??? ? | | ????????????????????????????????# #???? ??# # | | ???????????????????????????????## #???? #??# # | | ???????????????????? # # * ###### #??# # | | ???????????????????? % ## #??# # | | ???????????????????? #### ## #??# # | | ???????????????????? ## ##??# #??# # | | ????????????????????? ???## #????#### #??# # | | ?????????????????????? ??????# #????????# #### # | | ?????????????????????????????# #?????????# | | ????????????????????????????# ??????????######## | | ????????????????????????????## ?????????????????? | | ?????????????????????????????# ??????????????????? | | ????????????????????????????? ??????????????????? | +----------------------------------------------------+ Best States ------------- Heat Dissipation 25 Energy Generation 10 Energy Capacity 250 Matter Stores 108 Matter Capacity 300 Sight Range 16 Terrain Scan Density 10 Evasion (%) 42 Item Schematics ----------------- None Robot Schematics ------------------ None Fabricated ------------ Nothing Alien Tech Used ----------------- None Achievements -------------- None Challenges ------------ None Game ------ Seed LargeMetafieldLauncher Manual? 0 Play Time 00:09:12 Cumulative 109.9 hours Start 2024.04.03 @ 12:21:06 End 2024.04.03 @ 12:32:20 Sessions 1 Manual Loads 0 Difficulty Rogue Special Mode None Game No. 111 Rogue 108 Adventurer 0 Explorer 3 Win Type - Total 0 Types 0/0/0/0/0/0/0/0/0 Lore% 31 Gallery% 47 Achievement% 34 Wizard Run 0 Options --------- Layout 1 ASCII 0 Keyboard 0 Movement Numpad Keybinds 0 Fullscreen 2 Font 24/Tamsyn Map View 50x35 Zoom Use 0% Tactical HUD 1 Map Filters NONE Filters NONE Steam 1 RUN: a02e900a-4ff4-4c73-bc6d-ace456325c26